Cogmind - Beta 9.1 *** ADVENTURER MODE // 2019.10.31 @ 08:03:31 // Halloween2019/Abominations Player: Scandroid Result: Core destroyed Performance ------------- Evolutions (0) 0 Regions Visited (1) 200 Robots Destroyed (6) 30 Value Destroyed (278) 278 Prototype IDs (0) 0 Alien Tech Used (0) 0 Bonus (0) 0 TOTAL SCORE: 508 Bonus ------- None Cogmind --------- Core Integrity 0/250 Matter 283/300 Energy 100/100 System Corruption 0% Temperature Cool (0) Location -10/Materials Parts ------- Power (1) Propulsion (2) Utility (2) Small Storage Unit Weapon (2) Inventory (6) Peak State ------------ Power Light Ion Engine Propulsion Wheel Compact Wheel Utility Small Storage Unit Weapon Small Laser Assault Rifle Inventory Ion Engine Light Assault Rifle [Rating: 6] Favorites ----------- Power Light Ion Engine Engine Light Ion Engine Propulsion Compact Wheel Wheel Compact Wheel Utility Small Storage Unit Storage Small Storage Unit Weapon Assault Rifle Energy Gun Small Laser Ballistic Gun Assault Rifle Special Weapon Mining Laser Build | -11 -10 ------- Run | Scr Mat Slots Evolved . | . . Power . | . . Propulsion . | . . Utility . | . . Weapon . | . . Parts Attached 10 | 6 4 Power 2 | 1 1 Engine 2 | 1 1 Core . | . . Reactor . | . . Propulsion 3 | 2 1 Treads . | . . Leg . | . . Wheel 3 | 2 1 Hover . | . . Flight . | . . Utility 1 | 1 . Device . | . . Storage 1 | 1 . Processor . | . . Hackware . | . . Protection . | . . Artifact . | . . Weapon 4 | 2 2 Energy Gun 1 | 1 . Energy Cannon . | . . Ballistic Gun 2 | 1 1 Ballistic Cannon . | . . Launcher . | . . Special Weapon 1 | . 1 Impact Weapon . | . . Slashing Weapon . | . . Piercing Weapon . | . . Special Melee Weapon . | . . Unidentified Prototypes . | . . Parts Lost 6 | . 6 Power 2 | . 2 Propulsion 2 | . 2 Utility . | . . Weapon 2 | . 2 Highest Loss Streak 3 | . 3 Average Slot Usage (%) 73 | . 73 Engine 10 | . 10 Wheel 24 | . 24 Storage 14 | . 14 Energy Gun 8 | . 8 Ballistic Gun 14 | . 14 Naked Turns . | . . Heaviest Build 10 | 10 10 Greatest Support 32 | 26 32 Greatest Overweight (x) 3 | 3 2 Average Overweight (x) . | . . Largest Inventory Capacity 6 | 6 6 Average Capacity 5 | 5 6 Most Carried 3 | 2 3 Average Carried 1 | 1 2 Final Capacity 6 | 6 6 Final Carried 2 | 2 . Class Distribution -------------------- 100% | Mutant Dominant Class ---------------- Mutant | -10/Materials Resources | -11 -10 ----------- Run | Scr Mat Matter Collected 370 | 194 176 Remotely . | . . Salvage Created 202 | . 202 Parts 12 | . 12 Haulers Intercepted . | . . Recyclers Shooed . | . . Parts Field Recycled . | . . Retrieved Matter . | . . Parts Self-Destructed . | . . Prevented . | . . Kills | -11 -10 ------- Run | Scr Mat Combat Hostiles Destroyed 6 | . 6 Guns 5 | . 5 Cannons 1 | . 1 Classes Destroyed 3 | . 3 Swarmer 1 | . 1 Grunt 2 | . 2 Abomination 3 | . 3 Best Kill Streak 2 | . 2 Combat Bots Only 2 | . 2 Max Kills in Single Turn 1 | . 1 Gunslinging . | . . Exploded . | . . Melee . | . . Uniques/NPCs Destroyed . | . . Combat | -11 -10 -------- Run | Scr Mat Damage Taken 800 | . 800 Core 282 | . 282 Absorbed by Shields . | . . Core Remaining (%) 100 | 100 . Volleys Fired 34 | . 34 Largest 2 | . 2 Hottest 100 | . 100 Shots Fired 60 | . 60 Gun 57 | . 57 Cannon . | . . Launcher . | . . Special 3 | . 3 Kinetic 45 | . 45 Thermal 15 | . 15 Explosive . | . . Electromagnetic . | . . Robot Hit Streak 19 | . 19 Robot Miss Streak 5 | . 5 Penetration Max . | . . Secondary Targets 2 | . 2 Max Gunslinging Chain 1 | . 1 Shots Hit Robots 47 | . 47 Core Hits 18 | . 18 Critical Hits . | . . Critical Kills . | . . Critical Parts Destroyed . | . . Melee Attacks . | . . Impact . | . . Slashing . | . . Piercing . | . . Sneak Attacks . | . . Combat Hostiles . | . . Follow-up Attacks . | . . Damage Inflicted 570 | . 570 Guns 480 | . 480 Cannons . | . . Explosions . | . . Melee . | . . Ramming . | . . Kinetic 375 | . 375 Thermal 195 | . 195 Explosive . | . . Electromagnetic . | . . Impact . | . . Slashing . | . . Piercing . | . . Highest Corruption . | . . Average Corruption . | . . Corruption Purged . | . . Overload Shots . | . . Overflow Damage 25 | . 25 Projectiles 25 | . 25 Explosions . | . . Melee . | . . Knockbacks . | . . Impact . | . . Kinetic . | . . Secondary . | . . Self-Inflicted Damage . | . . Shots . | . . Rammed . | . . Targets Rammed . | . . Kicked . | . . Crushed . | . . Highest Temperature 87 | . 87 Average Temperature 25 | . 25 Received Heat Transfer 264 | . 264 Siege Activations . | . . Robots Corrupted . | . . Combat Hostiles . | . . Parts Fried . | . . Impact Corruptions . | . . Robots Melted . | . . Combat Hostiles . | . . Parts Melted . | . . Heat Transferred 204 | . 204 Parts Sabotaged . | . . Parts Stolen . | . . Parts Stripped . | . . Power Chain Reactions . | . . Missiles Intercepted . | . . Alert | -11 -10 ------- Run | Scr Mat Peak Influence 57 | . 57 Average Influence 22 | . 27 Maximum Alert Level . | . . Low Security (%) 100 | . . Level 1 . | . . Level 2 . | . . Level 3 . | . . Level 4 . | . . Level 5 . | . . High Security . | . . Max Security . | . . Squads Dispatched 2 | . 2 Investigation 1 | . 1 Extermination . | . . Reinforcement . | . . Assault 1 | . 1 Garrison . | . . Intercept . | . . Construction Impeded . | . . Haulers Reinforced . | . . Stealth | -11 -10 --------- Run | Scr Mat Distress Signals 1 | . 1 Communications Jammed . | . . Distress Signals . | . . Times Spotted 15 | . 15 Peak Tracking Total 5 | . 5 Tactical Retreats 2 | . 2 Traps | -11 -10 ------- Run | Scr Mat Traps Triggered . | . . Indirectly . | . . Trap Hack Attempts . | . . Triggered . | . . Disarmed . | . . Reprogrammed . | . . Reused . | . . Traps Extracted . | . . Installed . | . . Triggered . | . . Machines | -11 -10 ---------- Run | Scr Mat Machines Disabled . | . . Max in Single Turn . | . . Machines Sabotaged . | . . Garrisons Compromised . | . . Overloaded Fab Kills . | . . Fab Network Shutdowns . | . . Hacking | -11 -10 --------- Run | Scr Mat Machines Accessed 2 | . 2 Terminals 2 | . 2 Fabricators . | . . Repair Stations . | . . Recycling Units . | . . Scanalyzers . | . . Garrison Access . | . . Total Hacks 3 | . 3 Successful 3 | . 3 Failed . | . . Catastrophic . | . . Database Lockouts . | . . Manual . | . . Terminals 3 | . 3 Fabricators . | . . Repair Stations . | . . Recycling Units . | . . Scanalyzers . | . . Garrison Access . | . . Terminal Hacks 3 | . 3 Robot Analysis 1 | . 1 Locate Traps 1 | . 1 Zone Layout 1 | . 1 Fabricator Hacks . | . . Repair Station Hacks . | . . Recycling Unit Hacks . | . . Scanalyzer . | . . Garrison Access Hacks . | . . Unauthorized Hacks . | . . Terminals . | . . Fabricators . | . . Repair Stations . | . . Recycling Units . | . . Scanalyzers . | . . Garrison Access . | . . Data Cores Recovered . | . . Used . | . . Hacking Detections 1 | . 1 Full Trace Events . | . . Feedback Events . | . . Feedback Blocked . | . . Robot Schematics Acquired . | . . Robots Built . | . . Matter . | . . Time . | . . Total Robot Build Rating . | . . Part Schematics Acquired . | . . Parts Built . | . . Matter . | . . Time . | . . Total Part Build Rating . | . . Parts Repaired . | . . Time . | . . Parts Recycled . | . . Recycled Matter . | . . Retrieved Matter . | . . Retrieved Components . | . . Parts Scanalyzed . | . . Part Schematics Acquired . | . . Parts Damaged . | . . Bothacking | -11 -10 ------------ Run | Scr Mat Used RIF Installer . | . . Robots Hacked . | . . Non-combat . | . . Combat . | . . Robot Hacks Applied . | . . Relay Couplers Released . | . . Robots Rewired . | . . Allies Hacked . | . . Hacks Repelled . | . . Allies | -11 -10 -------- Run | Scr Mat Total Allies . | . . Largest Group . | . . Highest-Rated Group . | . . Highest-Rated Ally . | . . Total Orders . | . . Ally Attacks . | . . Total Damage . | . . Kills . | . . Allies Corrupted . | . . Allies Melted . | . . Intel | -11 -10 ------- Run | Scr Mat Robot Analysis Total 1 | . 1 Derelict Logs Recovered . | . . Drone Launches . | . . Drone Recoveries . | . . Exploration | -11 -10 ------------- Run | Scr Mat Turns Passed 372 | 71 301 Spaces Moved 234 | 58 176 Core 43 | 29 14 Treads . | . . Legs . | . . Wheels 191 | 29 162 Hover . | . . Flight . | . . Fastest Speed 50 | 50 90 Average Speed 97 | 103 95 Slowest Speed 200 | 200 150 Overloaded Moves . | . . Propulsion Burnouts . | . . Robots Hopped . | . . Cave-ins Triggered . | . . Exploration Rate (%) 16 | 3 30 Regions Visited 1 Branch Regions . Pre-discovered Areas . | . . Known Exits Taken . | . . Unknown Exits Taken 1 | 1 . Scrap Searched . | . . Spaces Dug . | . . Terrain Destroyed . | . . Melee . | . . Projectile . | . . AOE . | . . Actions | -11 -10 --------- Run | Scr Mat Total 293 | 65 228 Wait 13 | . 13 Move 233 | 57 176 Hop . | . . Pick Up 3 | 2 1 Fast Attach 7 | 6 1 Attach 3 | . 3 Detach . | . . Swap . | . . Drop . | . . Fire 34 | . 34 Melee . | . . Ram . | . . Kick . | . . Crush . | . . Escape Stasis . | . . Rewire . | . . Trap . | . . Miscellaneous . | . . Route ------- -11/Scrapyard -10/Materials (discovered 1 exit: [*Mat]) History --------- Turn | Location | Event 35 | -11/Scrapyard | Discovered new exit (range 16) 72 | -11/Scrapyard | Entered Materials 108 | -10/Materials | Discovered new exit (range 15) 312 | -10/Materials | Build established: Mutant 350 | -10/Materials | Core integrity fell below 50% 371 | -10/Materials | Core integrity fell below 20% 373 | -10/Materials | Core destroyed Last Messages --------------- 00348_ Unstable Anomaly suddenly flashes brightly. 00348_ Engulfed by violent ripples tearing at the fabric of space. 00348_ Mining Laser destroyed. 00349_ Unstable Anomaly suddenly flashes brightly. 00349_ Engulfed by violent ripples tearing at the fabric of space. 00354_ Hungry Anomaly eats Tractor Beam. 00355_ Lesser Abomination spits out Med. Matter Pod. 00355_ Lesser Abomination feeds off Hungry Anomaly, taking Lrg. Matter Pod. 00355_ Hungry Anomaly eats Lgt. Assault Rifle. 00356_ Hit by a wave of energy. 00356_ Com. Wheel ripped off. 00365_ Unstable Anomaly suddenly flashes brightly. 00365_ Engulfed by violent ripples tearing at the fabric of space. 00365_ Ion Engine destroyed. 00367_ Unstable Anomaly suddenly flashes brightly. 00369_ Com. Wheel blinks away. 00370_ Engulfed by violent ripples tearing at the fabric of space. 00373_ Frozen by Ice Anomaly. 00373_ Engulfed by violent ripples tearing at the fabric of space. Map ----- +----------------------------------------------------+ | ?????????????????????????????????????????????????? | | ?????????????????????????????????????????????????? | | ?????????????????????????????????????????????????? | | ?????????????????????????????????????????????????? | | ?????????????????????????????????????????????????? | | ????????????#############????????????????????????? | | ????????????# #????????????????????????? | | ????????????# #????????????????????????? | | ??########### # ?????????????????????? | | ^ + # ?????????????????????? | | ??########### # ?????????????????????? | | ????????????# ! # #????????????????????? | | ????????????# # m #????????????????????? | | ????????????########+####g #????????????????????? | | ?????????????????# ##gg #????????????????????? | | ?????????????????# ## +????????????????????? | | ? """ #?????????# T ## # "?????????????????? | | ? """ ########### ## # ?????????????????? | | ? """ # ## ## ########?????????????? | | ? # ### ### # #?????????????? | | ? # #?# #?# # #?????????????? | | ? # #?# #?# # """ #?????????????? | | ? # #?# #?# [+ """ #?????????????? | | ??###### #?# #?# # """ #?????????????? | | ? ## #?# ### # #?????????????? | | ?""" ## #?# T##@ ########?????????????? | | ?""" ## #?# ### #????????????????????? | | ?""" #####+####### #?# #????????????????????? | | ? #?# #?#n #????????????????????? | | ?""" #?# #?# ################### ? | | ?""" #?# #?# % % | | ?""" #?# T #?# | | ? #?# #?# | | ?+#####?# #?#A######## ########????? | | ? ####### #?# #??????# #???????????? | | ? # ## #?#n#??????# #??????????? | | ? # ## #?# #?????##+############ | | ? # ## #?# #?????# + | | ? # ####+## = ### ##????# """ # | | ? + # # """ % #????# """ # """ | | ?###?### # """ #????# """ # """ | | ? # # """ #????# + """ | | ? # # """ #????# """ # | | ? # # """% #????# """ # | | ?""" # # %% #????# """ # | | ?""" # + #????# # | | ?""" # # #????########## | | ?????????????########+## #?????????????# | | ???????????????????? ?# #?????????????# ##+## | | ????????????????????""?# #?????????????# #???? | +----------------------------------------------------+ Best States ------------- Heat Dissipation 25 Energy Generation 10 Energy Capacity 250 Matter Stores 300 Matter Capacity 300 Sight Range 16 Terrain Scan Density 10 Resistance: KI 20 Resistance: TH 20 Resistance: EX 20 Resistance: EM 20 Resistance: I 20 Resistance: S 20 Resistance: P 20 Evasion (%) 42 Item Schematics ----------------- None Robot Schematics ------------------ None Fabricated ------------ Nothing Alien Tech Used ----------------- None Achievements -------------- None Challenges ------------ None Game ------ Seed SingularityScanNetwork Manual? 0 Play Time 00:14:21 Cumulative 13.3 hours Start 2019.10.31 @ 07:46:51 End 2019.10.31 @ 08:03:31 Sessions 1 Manual Loads 0 Difficulty Adventurer Special Mode Halloween2019/Abominations Game No. 25 Rogue 3 Adventurer 11 Explorer 0 Win Type - Total 0 Types 0/0/0/0/0/0/0 Lore% 14 Gallery% 19 Achievement% 15 Wizard Run 0 Options --------- ASCII 0 Keyboard 0 Movement Arrows Keybinds 0 Fullscreen 2 Font 18/SmallcapsGlow Map View 76x50 Tactical HUD 1 Map Filters NONE Filters NONE Steam 1 RUN: 787f162e-d4c2-48ad-9933-58678458750b